lending/lending_fUSD_20260124
["ID","MTS","AMOUNT","RATE_DAILY","PERIOD"]
[403210330,1769267458956,500.0,0.00011674,2]
[403210639,1769267462010,-196.14859025,0.00011675,2]
[403210985,1769267465555,300.0,0.00011674,2]
[403212434,1769267480811,500.0,0.00011674,2]
[403212466,1769267481122,500.0,0.00011674,2]
[403212538,1769267481819,475.6332678,0.00011674,2]
[403213745,1769267493922,184.2881,0.00011575,2]
[403214371,1769267500277,164.49344245,0.00011574,2]
[403214835,1769267506243,164.49344245,0.00011575,2]
[403214846,1769267548819,500.0,0.00011575,2]
[403214848,1769267595337,-241.31363509,0.00011674,2]
[403214849,1769267599215,-167.63302564,0.00011674,2]
[403214850,1769267600402,-91.05333927,0.00011674,2]
[403214851,1769267600424,-157.98419416,0.00011674,2]
[403214852,1769267603317,-164.89558838,0.00011674,2]
[403214853,1769267606437,-177.12021746,0.00011674,2]
[403214854,1769267606462,-31.55098073,0.00011674,2]
[403214855,1769267611683,-185.04025969,0.00011674,2]
[403214856,1769267613378,-175.25151122,0.00011674,2]
[403214857,1769267615383,-189.36428936,0.00011674,2]
[403214858,1769267617056,-44.59904502,0.00011674,2]
[403214859,1769267617082,-190.80711694,0.00011674,2]
[403214860,1769267619363,-165.51566,0.00011674,2]
[403214861,1769267621717,-94.05004087,0.00011674,2]
[403214862,1769267621740,-500.0,0.00011674,2]
[403214863,1769267621761,-500.0,0.00011674,2]
[403214864,1769267621782,-171.16736585,0.00011674,2]
[403214865,1769267621804,-500.0,0.00011674,2]
[403214866,1769267621825,-500.0,0.00011674,2]
[403214867,1769267621845,-500.0,0.00011674,2]
[403214868,1769267621868,-535.98471119,0.00011674,2]
[403214869,1769267621889,-202.88619949,0.00011674,2]
[403214870,1769267621909,-500.0,0.00011674,2]
[403214871,1769267621929,-252.21775165,0.00011674,2]
[403214872,1769267621950,-300.0,0.00011674,2]
[403214873,1769267621972,-151.0,0.00011675,2]
[403214874,1769267622001,-10292.69393095,0.00011675,2]
[403214875,1769267622039,-242.71801423,0.00011675,2]
[403214876,1769267623344,-305.20281656,0.00011675,2]
[403214877,1769267625963,-206.04530438,0.00011675,2]
[403214878,1769267627089,-204.35792503,0.00011675,2]
[403214880,1769267630932,-174.29985516,0.00011675,2]
[403214881,1769267632389,-162.31083469,0.00011675,2]
[403214882,1769267633994,-152.90282489,0.00011675,2]
[403214883,1769267637157,-185.37093425,0.00011675,2]
[403214884,1769267639501,-260.85016,0.00011675,2]
[403214885,1769267643379,-266.94809082,0.00011675,2]
[403214886,1769267645421,-227.78422536,0.00011675,2]
[403214887,1769267647537,-450.0,0.00011675,2]
[403214888,1769267649272,-215.67345871,0.00011675,2]
[403214889,1769267650497,-297.23533721,0.00011675,2]
[403214890,1769267652332,-156.41500086,0.00011675,2]
[403214891,1769267654559,-252.143357,0.00011675,2]
[403214893,1769267656996,-274.61431748,0.00011675,2]
[403214894,1769267662955,-309.71222381,0.00011675,2]
[403214895,1769267664414,-331.82655358,0.00011675,2]
[403214896,1769267665940,-247.856643,0.00011675,2]
[403214897,1769267668097,-378.00494286,0.00011675,2]
[403214899,1769267704686,500.0,0.00011574,2]
[403214906,1769267765958,2500.0,0.00011575,2]
[403214909,1769267792839,578.16,0.000226,120]
[403214910,1769267822892,-226.22052347,0.00011673,2]
[403214911,1769267822917,-1.58363029,0.00011673,2]
[403214914,1769267845483,1896.08869875,0.00011575,2]
[403214915,1769267855047,236.7578,0.00011574,2]
[403214917,1769267864650,276.09590455,0.00011575,2]
[403214923,1769267912002,-179.06149038,0.00011673,2]
[403214924,1769267912031,-250.83228707,0.00011673,2]
[403214925,1769267913955,-211.35592782,0.00011673,2]
[403214926,1769267915288,2500.0,0.00011575,2]
[403214927,1769267916711,-37.81178511,0.00011673,2]
[403214928,1769267916739,-118.01428242,0.00011673,2]
[403214940,1769268015335,-217.69248067,0.00011672,2]
[403214941,1769268016833,-251.01652615,0.00011672,2]
[403214947,1769268045497,-165.51566,0.00011672,2]
[403214948,1769268046905,-225.66994004,0.00011672,2]
[403214949,1769268050957,-82.58539314,0.00011672,2]
[403214950,1769268050980,-105.76039603,0.00011673,2]
[403214951,1769268055842,-53.71081884,0.00011673,2]
[403214952,1769268055870,-189.24826128,0.00011673,2]
[403214954,1769268057535,-56.75173872,0.00011673,2]
[403214955,1769268057560,-108.76392128,0.00011673,2]
[403214956,1769268060533,196.1486,0.00011575,2]
[403214957,1769268060720,-141.23607872,0.00011673,2]
[403214958,1769268060746,-32.42076201,0.00011674,2]
[403214959,1769268062907,-261.67129629,0.00011674,2]
[403214962,1769268064710,-320.1522707,0.00011674,2]
[403214963,1769268066865,-473.66195779,0.00011674,2]
[403214964,1769268067218,467.8785,0.00011575,2]
[403214965,1769268068427,-512.79023918,0.00011674,2]
[403214966,1769268068489,-112.09371321,0.00011674,2]
[403214967,1769268083945,-500.0,0.00011674,2]
[403214968,1769268084008,-500.0,0.00011674,2]
[403214969,1769268084069,-500.0,0.00011674,2]
[403214970,1769268084131,-500.0,0.00011674,2]
[403214971,1769268084194,-500.0,0.00011674,2]
[403214972,1769268084254,-500.0,0.00011674,2]
[403214973,1769268084318,-500.0,0.00011674,2]
[403214974,1769268084374,-500.0,0.00011674,2]
[403214975,1769268084434,-500.0,0.00011674,2]
[403214976,1769268084494,-500.0,0.00011674,2]
[403214977,1769268085366,-500.0,0.00011674,2]
[403214978,1769268085393,-153.58755608,0.00011674,2]
[403214979,1769268087425,-346.41244392,0.00011674,2]
[403214980,1769268087490,-644.03213565,0.00011674,2]
[403214981,1769268087553,-500.0,0.00011674,2]
[403214982,1769268087617,-500.0,0.00011674,2]
[403214983,1769268087679,-500.0,0.00011674,2]
[403214984,1769268087740,-500.0,0.00011674,2]
[403214985,1769268087801,-500.0,0.00011674,2]
[403214986,1769268087865,-500.0,0.00011674,2]
[403214988,1769268087927,-500.0,0.00011674,2]
[403214989,1769268087992,-500.0,0.00011674,2]
[403214990,1769268088731,-165.51566,0.00011674,2]
[403214991,1769268091055,-297.33831714,0.00011674,2]
[403214992,1769268092933,-37.14602286,0.00011674,2]
[403214993,1769268092997,-500.0,0.00011674,2]
[403214994,1769268093062,-500.0,0.00011674,2]
[403214995,1769268093131,-500.0,0.00011674,2]
[403214996,1769268093196,-500.0,0.00011674,2]
[403214997,1769268093260,-500.0,0.00011674,2]
[403214998,1769268093324,-500.0,0.00011674,2]
[403214999,1769268093384,-500.0,0.00011674,2]
[403215000,1769268093446,-500.0,0.00011674,2]
[403215001,1769268095131,-280.18204348,0.00011675,2]
[403215002,1769268097678,-322.08885429,0.00011675,2]
[403215003,1769268098834,-225.63949057,0.00011675,2]
[403215004,1769268101283,-406.75450784,0.00011675,2]
[403215005,1769268102702,-240.41519322,0.00011675,2]
[403215006,1769268104308,-224.63899196,0.00011675,2]
[403215009,1769268106398,-186.5865895,0.00011675,2]
[403215010,1769268108264,-255.88840929,0.00011675,2]
[403215012,1769268110347,-177.57814651,0.00011675,2]
[403215015,1769268115505,500.0,0.00011674,2]
[403215016,1769268115571,315.26097247,0.00011674,2]
[403215017,1769268115641,500.0,0.00011674,2]
[403215018,1769268115729,500.0,0.00011674,2]
[403215019,1769268115798,110.45698181,0.00011674,2]
[403215020,1769268115861,389.54301819,0.00011674,2]
[403215021,1769268115935,500.0,0.00011674,2]
[403215022,1769268116026,500.0,0.00011674,2]
[403215023,1769268116460,500.0,0.00011674,2]
[403215026,1769268133740,177.578147,0.00011616,2]
[403215032,1769268136372,-410.43469677,0.00011675,2]
[403215033,1769268137386,-222.84735836,0.00011675,2]
[403215037,1769268141425,-220.72740043,0.00011675,2]
[403215038,1769268142804,-427.16872247,0.00011675,2]
[403215040,1769268144724,-189.38748428,0.00011675,2]
[403215059,1769268180439,-180.14659574,0.00011675,2]
[403215060,1769268181369,300.0,0.00011674,2]
[403215067,1769268191252,500.0,0.00011674,2]
[403215068,1769268191316,500.0,0.00011674,2]
[403215069,1769268191770,318.27109343,0.00011674,2]
[403215070,1769268191864,500.0,0.00011674,2]
[403215071,1769268191992,500.0,0.00011674,2]
[403215085,1769268210404,-169.88456738,0.00011675,2]
[403215087,1769268213913,-385.83173004,0.00011675,2]
[403215089,1769268215472,-162.54389024,0.00011675,2]
[403215092,1769268219087,-202.72394855,0.00011675,2]
[403215094,1769268222789,-185.90449884,0.00011675,2]
[403215096,1769268224137,-300.0,0.00011675,2]
[403215099,1769268228096,-390.8514742,0.00011675,2]
[403215101,1769268229540,-356.68783065,0.00011675,2]
[403215108,1769268243574,1651.53,0.00011,2]
[403215109,1769268244505,300.0,0.00011671,40]
[403215110,1769268244836,330.0,0.00011726,40]
[403215111,1769268245142,360.0,0.00011781,40]
[403215125,1769268274883,208.0,0.00011671,3]
[403215133,1769268284636,176.55242615,0.00011674,2]
[403215142,1769268301618,300.0,0.00011674,2]
[403215151,1769268359876,1706.47982883,0.00011575,2]
[403215152,1769268361559,300.0,0.00011674,2]
[403215158,1769268426159,358.95316743,0.00011674,2]
[403215160,1769268441363,500.0,0.00011674,2]
[403215161,1769268441464,321.10231897,0.00011674,2]
[403215162,1769268441527,178.89768103,0.00011674,2]
[403215163,1769268441615,364.40321357,0.00011674,2]
[403215166,1769268456454,220.68268072,0.00011674,2]
[403215167,1769268460833,9236.02642468,0.00011575,2]
[403215168,1769268463763,-182.64501787,0.00011575,2]
[403215169,1769268465756,-216.00725695,0.00011575,2]
[403215170,1769268470432,-272.08313769,0.00011575,2]
[403215171,1769268471986,-419.4945943,0.00011575,2]
[403215172,1769268474449,-260.46418727,0.00011575,2]
[403215173,1769268478768,-440.46022887,0.00011575,2]
[403215176,1769268481833,-183.95516542,0.00011575,2]
[403215177,1769268481968,300.0,0.00011574,2]
[403215178,1769268482820,-176.3635118,0.00011575,2]
[403215180,1769268485873,-294.80181519,0.00011575,2]
[403215182,1769268487832,-280.27009577,0.00011575,2]
[403215185,1769268492275,-231.04,0.00011575,2]
[403215186,1769268493497,-217.37327442,0.00011575,2]
[403215191,1769268500310,-196.2213971,0.00011575,2]
[403215194,1769268503242,-237.47072118,0.00011575,2]
[403215196,1769268505419,-216.85110539,0.00011575,2]
[403215198,1769268507007,188.38210904,0.00011574,2]
[403215199,1769268509108,-170.56030923,0.00011575,2]
[403215200,1769268511773,-153.04058854,0.00011575,2]
[403215201,1769268512349,323.14869481,0.00011574,2]
[403215202,1769268512413,192.23622787,0.00011574,2]
[403215203,1769268512515,500.0,0.00011574,2]
[403215204,1769268512586,225.71909286,0.00011574,2]
[403215206,1769268514119,533.04368692,0.00011574,2]
[403215207,1769268514375,500.0,0.00011574,2]
[403215208,1769268514498,500.0,0.00011574,2]
[403215209,1769268515053,-220.85293412,0.00011575,2]
[403215212,1769268519531,-187.33301048,0.00011575,2]
[403215213,1769268520780,151.60035706,0.00011574,2]
[403215214,1769268521843,-277.90939824,0.00011575,2]
[403215215,1769268525219,-333.67230456,0.00011575,2]
[403215216,1769268526980,-201.35302676,0.00011575,2]
[403215217,1769268528926,-383.33077612,0.00011575,2]
[403215218,1769268535840,-152.97215145,0.00011575,2]
[403215219,1769268537922,-262.34404567,0.00011575,2]
[403215220,1769268541667,300.0,0.00011574,2]
[403215221,1769268542658,-322.87212497,0.00011575,2]
[403215222,1769268546244,-282.32205396,0.00011575,2]
[403215223,1769268547928,-217.67794604,0.00011575,2]
[403215224,1769268550257,-245.61663754,0.00011575,2]
[403215225,1769268553289,-364.29993488,0.00011575,2]
[403215226,1769268554782,-218.91069413,0.00011575,2]
[403215227,1769268560356,-221.65826949,0.00011575,2]
[403215228,1769268562279,-151.69590403,0.00011575,2]
[403215229,1769268566015,-183.7866476,0.00011575,2]
[403215230,1769268592391,189.43893634,0.00011574,2]
[403215231,1769268601255,1200.0,0.00011574,2]
[403215262,1769268632315,-543.3,0.00011575,2]
[403215263,1769268632327,-7865.78604627,0.00011575,2]
[403215264,1769268632338,-1808.96,0.00011575,2]
[403215265,1769268632349,-4716.54626912,0.00011575,2]
[403215266,1769268632361,-305.0,0.00011575,2]
[403215267,1769268632379,-95167.45279185,0.00011575,2]
[403215268,1769268632417,-822.10562034,0.00011575,2]
[403215269,1769268632428,-5326.68,0.00011575,2]
[403215282,1769268638506,-1402.49229,0.00011575,2]
[403215291,1769268638580,-800.0,0.00011575,2]
[403215299,1769268638655,-8068.54145748,0.00011575,2]
[403215492,1769268640710,-137.05970909,0.00011575,2]
[403215538,1769268641209,-855422.33912414,0.00011575,2]
[403215540,1769268641219,-245.0,0.00011575,2]
[403215542,1769268641228,-1000.0,0.00011674,2]
[403215544,1769268641237,-217.2644,0.00011675,2]
[403215546,1769268641245,-32941.4774,0.00011675,2]
[403215548,1769268641254,-186.55,0.00011836,2]
[403215550,1769268641263,-942.48,0.00011946,2]
[403215552,1769268641272,-674.13413978,0.00012,2]
[403215554,1769268641281,-942.48,0.0001222,2]
[403215556,1769268641289,-1706.4798288,0.00012278,2]
[403215558,1769268641298,-942.48,0.00012494,2]
[403215560,1769268641307,-1680.0,0.00012731,2]
[403215562,1769268641317,-250.0,0.00012732,2]
[403215564,1769268641327,-265.78250093,0.00012732,2]
[403215565,1769268641336,-300.0,0.00012732,2]
[403215567,1769268641345,-942.48,0.00012768,2]
[403215569,1769268641354,-250.0,0.00012842,2]
[403215571,1769268641364,-1600.0,0.000129,2]
[403215574,1769268641374,-1706.4798288,0.00012981,2]
[403215576,1769268641383,-942.48,0.00013042,2]
[403215578,1769268641393,-3824.42660411,0.0001305,2]
[403215580,1769268641402,-208.83723449,0.00013239,2]
[403215582,1769268641410,-942.48,0.00013316,2]
[403215583,1769268641419,-3240.0,0.00013425,2]
[403215586,1769268641429,-942.48,0.0001359,2]
[403215588,1769268641437,-434.0,0.0001359,2]
[403215590,1769268641446,-1706.4798288,0.00013683,2]
[403215592,1769268641455,-500.0,0.00013698,2]
[403215594,1769268641463,-197.58025142,0.00013698,2]
[403215595,1769268641472,-500.0,0.00013698,2]
[403215597,1769268641481,-500.0,0.00013698,2]
[403215599,1769268641490,-500.0,0.00013698,2]
[403215601,1769268641499,-165.97106181,0.00013698,2]
[403215603,1769268641508,-500.0,0.00013698,2]
[403215605,1769268641517,-500.0,0.00013698,2]
[403215608,1769268641527,-500.0,0.00013698,2]
[403215609,1769268641536,-500.0,0.00013698,2]
[403215611,1769268641544,-500.0,0.00013698,2]
[403215614,1769268641553,-500.0,0.00013698,2]
[403215616,1769268641563,-593.61150569,0.00013698,2]
[403215618,1769268641572,-9454.21,0.00013698,2]
[403215620,1769268641583,-233.17455593,0.00013698,2]
[403215622,1769268641591,-500.0,0.00013698,2]
[403215623,1769268641600,-749.41,0.00013698,2]
[403215625,1769268641609,-301.58,0.00013699,2]
[403215627,1769268641618,-1185.90178612,0.00013772,2]
[403215630,1769268641629,-180278.88,0.00013782,2]
[403215632,1769268641639,-393.95,0.000138,2]
[403215633,1769268641648,-942.48,0.00013864,2]
[403215636,1769268641657,-1676.0,0.00013872,2]
[403215637,1769268641666,-2351.0,0.00014004,2]
[403215639,1769268641675,-197.15,0.00014035,2]
[403215641,1769268641684,-253.98,0.00014106,2]
[403215643,1769268641693,-500.0,0.00014115,2]
[403215646,1769268641703,-500.0,0.00014115,2]
[403215647,1769268641712,-5476.37,0.00014115,2]
[403215649,1769268641721,-150.99,0.00014115,2]
[403215651,1769268641730,-4999.99,0.00014125,2]
[403215653,1769268641739,-942.48,0.00014138,2]
[403215656,1769268641749,-500.0,0.00014225,2]
[403215658,1769268641758,-1706.4798288,0.00014386,2]
[403215660,1769268641767,-3730.39828202,0.0001439,2]
[403215662,1769268641776,-942.48,0.00014412,2]
[403215664,1769268641786,-1600.0,0.00014513,2]
[403215666,1769268641795,-393.95,0.00014566,2]
[403215668,1769268641803,-158.9,0.00014633,2]
[403215670,1769268641812,-152.0,0.00014662,3]
[403215672,1769268641821,-942.49772844,0.00014685,2]
[403215674,1769268641830,-166.66,0.00014688,2]
[403215676,1769268641839,-16197.82,0.00014795,2]
[403215678,1769268641848,-6210.2490806,0.00015,2]
[403215680,1769268641857,-17082.1488124,0.00015,2]
[403215682,1769268641866,-152.0,0.00015009,4]
[403215684,1769268641875,-1706.4798288,0.00015089,2]
[403215686,1769268641885,-166.66,0.00015173,2]
[403215688,1769268641898,-151.0,0.00015228,2]
[403215690,1769268641907,-151.0,0.00015228,2]
[403215692,1769268641916,-250.0,0.00015294,2]
[403215694,1769268641925,-393.95,0.00015333,2]
[403215696,1769268641934,-152.0,0.00015357,5]
[403215698,1769268641943,-508.06724516,0.000154,2]
[403215700,1769268641952,-3292.0,0.00015405,2]
[403215702,1769268641961,-3247.44,0.00015489,2]
[403215704,1769268641970,-1301.0,0.000155,2]
[403215706,1769268641979,-252.05994087,0.000155,2]
[403215708,1769268641988,-183.91,0.00015546,2]
[403215710,1769268641997,-166.66,0.00015658,2]
[403215712,1769268642005,-152.0,0.00015704,6]
[403215714,1769268642015,-578.20924308,0.00015745,2]
[403215716,1769268642024,-500.0,0.00015745,2]
[403215718,1769268642034,-151.0,0.00015745,2]
[403215720,1769268642043,-5432.0,0.00015745,2]
[403215722,1769268642052,-500.0,0.00015745,2]
[403215724,1769268642061,-151.0,0.00015745,2]
[403215726,1769268642070,-500.0,0.00015745,2]
[403215728,1769268642079,-151.0,0.00015745,2]
[403215730,1769268642088,-500.0,0.00015745,2]
[403215732,1769268642097,-151.0,0.00015745,2]
[403215734,1769268642107,-151.0,0.00015745,2]
[403215736,1769268642116,-500.0,0.00015745,2]
[403215738,1769268642125,-151.0,0.00015745,2]
[403215741,1769268642134,-500.0,0.00015745,2]
[403215742,1769268642143,-151.0,0.00015745,2]
[403215744,1769268642152,-500.0,0.00015745,2]
[403215746,1769268642161,-151.0,0.00015745,2]
[403215748,1769268642170,-500.0,0.00015745,2]
[403215751,1769268642180,-151.0,0.00015745,2]
[403215753,1769268642189,-343.10236963,0.00015745,2]
[403215755,1769268642198,-500.0,0.00015745,2]
[403215756,1769268642207,-151.0,0.00015745,2]
[403215758,1769268642216,-151.0,0.00015745,2]
[403215760,1769268642225,-500.0,0.00015745,2]
[403215763,1769268642235,-151.0,0.00015745,2]
[403215764,1769268642245,-500.0,0.00015745,2]
[403215766,1769268642254,-500.0,0.00015745,2]
[403215769,1769268642263,-500.0,0.00015745,2]
[403215771,1769268642272,-500.0,0.00015745,2]
[403215773,1769268642281,-250.0,0.00015745,2]
[403215774,1769268642290,-233.89856902,0.00015745,2]
[403215777,1769268642300,-500.0,0.00015745,2]
[403215778,1769268642309,-500.0,0.00015745,2]
[403215780,1769268642322,-250.0,0.00015745,2]
[403215783,1769268642331,-500.0,0.00015745,2]
[403215785,1769268642340,-250.0,0.00015745,2]
[403215786,1769268642349,-500.0,0.00015745,2]
[403215788,1769268642357,-250.0,0.00015745,2]
[403215790,1769268642366,-500.0,0.00015745,2]
[403215792,1769268642375,-250.0,0.00015745,2]
[403215794,1769268642384,-500.0,0.00015745,2]
[403215796,1769268642393,-500.0,0.00015745,2]
[403215798,1769268642402,-500.0,0.00015745,2]
[403215800,1769268642411,-854.2589148,0.00015745,2]
[403215802,1769268642420,-500.0,0.00015745,2]
[403215804,1769268642428,-500.0,0.00015745,2]
[403215806,1769268642438,-322.6107,0.00015745,2]
[403215808,1769268642447,-500.0,0.00015745,2]
[403215810,1769268642457,-174.61919141,0.00015745,2]
[403215812,1769268642465,-500.0,0.00015745,2]
[403215814,1769268642474,-500.0,0.00015745,2]
[403215816,1769268642483,-500.0,0.00015745,2]
[403215818,1769268642492,-500.0,0.00015745,2]
[403215820,1769268642501,-250.0,0.00015745,2]
[403215822,1769268642510,-500.0,0.00015745,2]
[403215824,1769268642520,-250.0,0.00015745,2]
[403215826,1769268642529,-500.0,0.00015745,2]
[403215828,1769268642538,-250.0,0.00015745,2]
[403215830,1769268642547,-500.0,0.00015745,2]
[403215832,1769268642556,-250.0,0.00015745,2]
[403215834,1769268642565,-500.0,0.00015745,2]
[403215836,1769268642574,-250.0,0.00015745,2]
[403215838,1769268642582,-301.96560903,0.00015745,2]
[403215840,1769268642591,-500.0,0.00015745,2]
[403215842,1769268642600,-500.0,0.00015745,2]
[403215844,1769268642609,-250.0,0.00015745,2]
[403215845,1769268642618,-500.0,0.00015745,2]
[403215847,1769268642627,-250.0,0.00015745,2]
[403215850,1769268642637,-500.0,0.00015745,2]
[403215851,1769268642646,-250.0,0.00015745,2]
[403215853,1769268642655,-500.0,0.00015745,2]
[403215855,1769268642664,-250.0,0.00015745,2]
[403215857,1769268642674,-500.0,0.00015745,2]
[403215859,1769268642683,-312.60820425,0.00015745,2]
[403215861,1769268642693,-500.0,0.00015745,2]
[403215863,1769268642702,-500.0,0.00015745,2]
[403215865,1769268642711,-500.0,0.00015745,2]
[403215867,1769268642721,-500.0,0.00015745,2]
[403215869,1769268642730,-500.0,0.00015745,2]
[403215871,1769268642740,-500.0,0.00015791,2]
[403215873,1769268642749,-749.41,0.00015791,2]
[403215875,1769268642760,-1706.4798288,0.00015792,2]
[403215877,1769268642769,-193.38072693,0.00015807,2]
[403215879,1769268642778,-503.0,0.00015836,2]
[403215881,1769268642787,-500.0,0.00015873,2]
[403215883,1769268642796,-500.0,0.00015873,2]
[403215885,1769268642806,-505.83466941,0.00015873,2]
[403215887,1769268642814,-500.0,0.00015873,2]
[403215889,1769268642823,-500.0,0.00015873,2]
[403215891,1769268642833,-544.47711737,0.00015873,2]
[403215893,1769268642842,-500.0,0.00015873,2]
[403215895,1769268642851,-500.0,0.00015873,2]
[403215897,1769268642860,-500.0,0.00015873,2]
[403215899,1769268642869,-542.33856448,0.00015873,2]
[403215901,1769268642878,-607.15821099,0.00015873,2]
[403215903,1769268642887,-500.0,0.00015873,2]
[403215906,1769268642896,-500.0,0.00015873,2]
[403215909,1769268642905,-500.0,0.00015873,2]
[403215912,1769268642915,-303.1127939,0.00015873,2]
[403215914,1769268642924,-500.0,0.00015873,2]
[403215916,1769268642933,-500.0,0.00015873,2]
[403215918,1769268642942,-500.0,0.00015873,2]
[403215920,1769268642950,-500.0,0.00015873,2]
[403215922,1769268642959,-500.0,0.00015873,2]
[403215924,1769268642968,-500.0,0.00015873,2]
[403215926,1769268642977,-500.0,0.00015873,2]
[403215928,1769268642986,-500.0,0.00015873,2]
[403215930,1769268642995,-500.0,0.00015873,2]
[403215932,1769268643004,-500.0,0.00015873,2]
[403215934,1769268643013,-500.0,0.00015873,2]
[403215937,1769268643031,-500.0,0.00015873,2]
[403215939,1769268643042,-239.10627716,0.00015873,2]
[403215941,1769268643052,-1000.0,0.00015918,2]
[403215943,1769268643061,-151.0,0.00015987,2]
[403215945,1769268643070,-76490.47234941,0.0001599,2]
[403215947,1769268643079,-150.0,0.00016,2]
[403215950,1769268643089,-43947.56453849,0.00016052,2]
[403215952,1769268643099,-152.0,0.00016052,7]
[403215955,1769268643109,-393.95,0.00016099,2]
[403215958,1769268643118,-1600.0,0.00016125,2]
[403215961,1769268643128,-166.66,0.00016143,2]
[403215964,1769268643137,-3247.44,0.00016264,2]
[403215967,1769268643146,-159.59843399,0.0001627,2]
[403215969,1769268643156,-885.86649465,0.00016293,2]
[403215971,1769268643165,-181.08010149,0.00016293,2]
[403215973,1769268643174,-150.0,0.00016328,2]
[403215975,1769268643183,-150.0,0.00016328,2]
[403215978,1769268643192,-500.0,0.00016356,2]
[403215981,1769268643201,-500.0,0.00016356,2]
[403215984,1769268643211,-18248.77,0.00016376,2]
[403215987,1769268643220,-150.0,0.00016383,2]
[403215989,1769268643229,-152.0,0.00016399,8]
[403215991,1769268643238,-1003.07183782,0.00016421,2]
[403215993,1769268643248,-1000.0,0.00016421,2]
[403215995,1769268643257,-500.0,0.00016421,2]
[403215997,1769268643266,-1034.24079626,0.00016421,2]
[403215999,1769268643276,-1000.0,0.00016421,2]
[403216001,1769268643285,-500.0,0.00016421,2]
[403216003,1769268643295,-1000.0,0.00016421,2]
[403216005,1769268643307,-1000.0,0.00016421,2]
[403216007,1769268643317,-500.0,0.00016421,2]
[403216009,1769268643332,-500.0,0.00016421,2]
[403216011,1769268643342,-1000.0,0.00016421,2]
[403216057,1769268643737,-1000.0,0.00016421,2]
[403216059,1769268643747,-1000.0,0.00016421,2]
[403216061,1769268643756,-1000.0,0.00016421,2]
[403216063,1769268643766,-1000.0,0.00016421,2]
[403216065,1769268643775,-1000.0,0.00016421,2]
[403216067,1769268643784,-1000.0,0.00016421,2]
[403216069,1769268643793,-1000.0,0.00016421,2]
[403216071,1769268643803,-1000.0,0.00016421,2]
[403216073,1769268643812,-1003.96785498,0.00016421,2]
[403216075,1769268643822,-500.0,0.00016421,2]
[403216077,1769268643831,-500.0,0.00016421,2]
[403216079,1769268643841,-500.0,0.00016437,2]
[403216081,1769268643850,-500.0,0.00016437,2]
[403216083,1769268643863,-500.0,0.00016437,2]
[403216085,1769268643872,-150.0,0.00016438,2]
[403216087,1769268643882,-150.0,0.00016438,2]
[403216089,1769268643891,-300.0,0.00016438,2]
[403216091,1769268643900,-300.0,0.00016438,2]
[403216093,1769268643909,-300.0,0.00016438,2]
[403216095,1769268643919,-300.0,0.00016438,2]
[403216097,1769268643928,-300.0,0.00016438,2]
[403216099,1769268643937,-300.0,0.00016438,2]
[403216101,1769268643947,-300.0,0.00016438,2]
[403216103,1769268643956,-300.0,0.00016438,2]
[403216106,1769268643965,-300.0,0.00016438,2]
[403216107,1769268643975,-380.48629979,0.00016438,2]
[403216109,1769268643985,-226.54581965,0.00016438,2]
[403216112,1769268643996,-500.0,0.00016438,2]
[403216113,1769268644004,-500.0,0.00016438,2]
[403216116,1769268644014,-500.0,0.00016438,2]
[403216118,1769268644024,-500.0,0.00016438,2]